[Event "*** Titled Tuesday Blitz"]
[Site "Chess.com"]
[Date "2019.05.07"]
[Round "7"]
[White "albi1999"]
[Black "jefferyx"]
[Result "0-1"]
[WhiteElo "2548"]
[BlackElo "2914"]
[TimeControl "180+2"]
[EndTime "14:38:51 PDT"]
[Termination "jefferyx won by resignation"]

1. d4 {[%clk 0:03:01.9]} 1... g6 {[%clk 0:03:00.8]} 2. Nf3 {[%clk 0:03:02.6]}
2... Bg7 {[%clk 0:03:02.2]} 3. g3 {[%clk 0:03:04.1]} 3... c5 {[%clk 0:03:02.9]}
4. dxc5 {[%clk 0:03:05]} 4... Na6 {[%clk 0:03:01.8]} 5. Bg2 {[%clk 0:03:02.4]}
5... Nxc5 {[%clk 0:03:03.1]} 6. c4 {[%clk 0:03:03.8]} 6... d6 {[%clk 0:03:04.2]}
7. O-O {[%clk 0:03:03.9]} 7... Be6 {[%clk 0:02:57.9]} 8. Nbd2 {[%clk 0:02:54.3]}
8... Nf6 {[%clk 0:02:58.9]} 9. b4 {[%clk 0:02:54.3]} 9... Na6 {[%clk 0:02:48.7]}
10. a3 {[%clk 0:02:29.6]} 10... O-O {[%clk 0:02:49.3]} 11. Bb2 {[%clk
0:02:29.9]} 11... Nc7 {[%clk 0:02:44.3]} 12. Ng5 {[%clk 0:02:13.2]} 12... Bc8
{[%clk 0:02:45.5]} 13. Nb3 {[%clk 0:02:10.4]} 13... Ne6 {[%clk 0:02:26.3]} 14.
Nxe6 {[%clk 0:02:08]} 14... Bxe6 {[%clk 0:02:28.2]} 15. Bxb7 {[%clk 0:01:59.4]}
15... Rb8 {[%clk 0:02:05.7]} 16. Bg2 {[%clk 0:01:56.7]} 16... Bxc4 {[%clk
0:02:06.3]} 17. Na5 {[%clk 0:01:58.2]} 17... Bb5 {[%clk 0:02:07.1]} 18. Rc1
{[%clk 0:01:46.7]} 18... Qd7 {[%clk 0:02:07.8]} 19. Qd2 {[%clk 0:01:25.6]} 19...
Rfc8 {[%clk 0:02:06.5]} 20. Rxc8+ {[%clk 0:01:25.4]} 20... Rxc8 {[%clk
0:02:08.4]} 21. Rc1 {[%clk 0:01:26.2]} 21... Rxc1+ {[%clk 0:02:08]} 22. Qxc1
{[%clk 0:01:28.1]} 22... Bxe2 {[%clk 0:02:05.8]} 23. Qc6 {[%clk 0:01:14.4]}
23... Qf5 {[%clk 0:02:03.8]} 24. Qa8+ {[%clk 0:01:10.7]} 24... Bf8 {[%clk
0:02:05.2]} 25. Qc6 {[%clk 0:00:50.6]} 25... Bh6 {[%clk 0:01:54.9]} 26. Qa8+
{[%clk 0:00:22.4]} 26... Bf8 {[%clk 0:01:55.4]} 27. Qc6 {[%clk 0:00:22.2]} 27...
Bh6 {[%clk 0:01:52.5]} 28. Qa8+ {[%clk 0:00:22.8]} 28... Kg7 {[%clk 0:01:54.2]}
29. Bxf6+ {[%clk 0:00:17.6]} 29... Qxf6 {[%clk 0:01:55.7]} 30. h3 {[%clk
0:00:16.1]} 30... Qa1+ {[%clk 0:01:46.9]} 31. Kh2 {[%clk 0:00:16.8]} 31... Qd4
{[%clk 0:01:48.5]} 32. Qe4 {[%clk 0:00:16.3]} 32... Qxf2 {[%clk 0:01:47.9]} 33.
Qxe7 {[%clk 0:00:15.9]} 33... Bf3 {[%clk 0:01:44.2]} 0-1

[Event "*** Titled Tuesday Blitz"]
[Site "Chess.com"]
[Date "2019.05.07"]
[Round "7"]
[White "kikoveiga"]
[Black "Roenko_Artur"]
[Result "1-0"]
[WhiteElo "2271"]
[BlackElo "2202"]
[TimeControl "180+2"]
[EndTime "14:38:57 PDT"]
[Termination "kikoveiga won by resignation"]

1. e4 {[%clk 0:03:01.9]} 1... e6 {[%clk 0:03:01.2]} 2. d4 {[%clk 0:03:00.6]}
2... d5 {[%clk 0:03:00]} 3. Nc3 {[%clk 0:02:58.8]} 3... Bb4 {[%clk 0:02:57]} 4.
e5 {[%clk 0:02:56.5]} 4... c5 {[%clk 0:02:57.2]} 5. a3 {[%clk 0:02:56.1]} 5...
Bxc3+ {[%clk 0:02:58.2]} 6. bxc3 {[%clk 0:02:55.3]} 6... Ne7 {[%clk 0:03:00.1]}
7. Qg4 {[%clk 0:02:52.4]} 7... cxd4 {[%clk 0:03:00.6]} 8. Qxg7 {[%clk 0:02:49]}
8... Rg8 {[%clk 0:03:01.2]} 9. Qxh7 {[%clk 0:02:49.9]} 9... Qc7 {[%clk
0:03:01.6]} 10. Ne2 {[%clk 0:02:47.1]} 10... Nbc6 {[%clk 0:02:59.9]} 11. f4
{[%clk 0:02:45]} 11... dxc3 {[%clk 0:03:01.3]} 12. Qd3 {[%clk 0:02:33.9]} 12...
d4 {[%clk 0:03:01.4]} 13. Nxd4 {[%clk 0:02:28.6]} 13... Nxd4 {[%clk 0:03:03.3]}
14. Qxd4 {[%clk 0:02:26.7]} 14... Bd7 {[%clk 0:03:04.7]} 15. Rg1 {[%clk
0:02:24.2]} 15... Nf5 {[%clk 0:03:03.2]} 16. Qf2 {[%clk 0:02:21.9]} 16... Qc6
{[%clk 0:02:58.1]} 17. Bd3 {[%clk 0:02:17.9]} 17... O-O-O {[%clk 0:02:48.4]} 18.
g4 {[%clk 0:02:04.4]} 18... Ne7 {[%clk 0:02:46.4]} 19. Qxa7 {[%clk 0:01:57]}
19... Nd5 {[%clk 0:02:39.2]} 20. Rb1 {[%clk 0:01:53]} 20... Kc7 {[%clk
0:02:19.6]} 21. Bb5 {[%clk 0:01:36.7]} 21... Qxb5 {[%clk 0:01:54.8]} 22. Rxb5
{[%clk 0:01:35.3]} 22... Bxb5 {[%clk 0:01:56.7]} 23. Qc5+ {[%clk 0:01:27.1]}
23... Bc6 {[%clk 0:01:54.4]} 24. h4 {[%clk 0:01:28]} 24... b6 {[%clk 0:01:46.4]}
25. Qc4 {[%clk 0:01:27.2]} 25... Ra8 {[%clk 0:01:45.5]} 26. Kf2 {[%clk
0:01:23.1]} 26... Ra4 {[%clk 0:01:44.9]} 27. Qd3 {[%clk 0:01:19]} 27... Rd8
{[%clk 0:01:38.7]} 28. Rd1 {[%clk 0:01:15.1]} 28... Rg8 {[%clk 0:01:19.5]} 29.
Qh7 {[%clk 0:01:10.6]} 29... Rxg4 {[%clk 0:01:07.8]} 30. Qxf7+ {[%clk
0:01:07.3]} 30... Bd7 {[%clk 0:01:03.6]} 31. Rxd5 {[%clk 0:01:03.8]} 31... exd5
{[%clk 0:01:02.2]} 32. e6 {[%clk 0:01:04.4]} 1-0

[Event "*** Titled Tuesday Blitz"]
[Site "Chess.com"]
[Date "2019.05.07"]
[Round "7"]
[White "OneTrickPony_82"]
[Black "Slovak_fighter2000"]
[Result "0-1"]
[WhiteElo "2325"]
[BlackElo "2437"]
[TimeControl "180+2"]
[EndTime "14:39:13 PDT"]
[Termination "Slovak_fighter2000 won by resignation"]

1. d4 {[%clk 0:03:01.9]} 1... g6 {[%clk 0:03:00.4]} 2. e4 {[%clk 0:03:02.2]}
2... Bg7 {[%clk 0:03:01.7]} 3. Nf3 {[%clk 0:03:02.7]} 3... d6 {[%clk 0:03:03.1]}
4. Be3 {[%clk 0:03:03.2]} 4... Nf6 {[%clk 0:03:04.6]} 5. Nc3 {[%clk 0:03:03.2]}
5... O-O {[%clk 0:03:06.3]} 6. Qd2 {[%clk 0:03:03.6]} 6... Nc6 {[%clk
0:03:06.5]} 7. d5 {[%clk 0:03:02.8]} 7... Ne5 {[%clk 0:03:07]} 8. Nxe5 {[%clk
0:02:59.4]} 8... dxe5 {[%clk 0:03:08.9]} 9. f3 {[%clk 0:02:32.9]} 9... e6 {[%clk
0:03:10]} 10. O-O-O {[%clk 0:02:29.9]} 10... exd5 {[%clk 0:03:11.7]} 11. Nxd5
{[%clk 0:02:31]} 11... Nxd5 {[%clk 0:03:13.1]} 12. Qxd5 {[%clk 0:02:31.4]} 12...
Qxd5 {[%clk 0:03:14.6]} 13. Rxd5 {[%clk 0:02:31.5]} 13... Be6 {[%clk 0:03:16.3]}
14. Rd1 {[%clk 0:02:30]} 14... c6 {[%clk 0:03:17.2]} 15. b3 {[%clk 0:02:26.9]}
15... a5 {[%clk 0:03:18.3]} 16. a4 {[%clk 0:02:27.4]} 16... Rfc8 {[%clk
0:03:17.3]} 17. Bb6 {[%clk 0:02:22.1]} 17... Bf6 {[%clk 0:03:17.1]} 18. Kb2
{[%clk 0:02:17.6]} 18... Bd8 {[%clk 0:03:18.1]} 19. Be3 {[%clk 0:02:11.9]} 19...
Bc7 {[%clk 0:03:19.9]} 20. Be2 {[%clk 0:02:11.9]} 20... f6 {[%clk 0:03:21]} 21.
g4 {[%clk 0:02:08.5]} 21... Rd8 {[%clk 0:03:21.9]} 22. h4 {[%clk 0:02:09]} 22...
Kg7 {[%clk 0:03:22.5]} 23. h5 {[%clk 0:02:08.4]} 23... Rxd1 {[%clk 0:03:23.7]}
24. h6+ {[%clk 0:02:07.4]} 24... Kf7 {[%clk 0:03:24.1]} 25. Rxd1 {[%clk
0:02:08.5]} 25... Rd8 {[%clk 0:03:25.3]} 26. Rxd8 {[%clk 0:01:43.6]} 26... Bxd8
{[%clk 0:03:27.2]} 27. c3 {[%clk 0:01:44.5]} 27... g5 {[%clk 0:03:28.2]} 28. Bc5
{[%clk 0:01:42.3]} 28... Kg6 {[%clk 0:03:28.7]} 29. Bf8 {[%clk 0:01:41.6]} 29...
Kf7 {[%clk 0:03:28.6]} 30. Bg7 {[%clk 0:01:39.5]} 30... Be7 {[%clk 0:03:27.4]}
31. Bd3 {[%clk 0:01:34.8]} 31... Bf8 {[%clk 0:03:28.6]} 32. Bxf8 {[%clk
0:01:34.6]} 32... Kxf8 {[%clk 0:03:30.5]} 33. b4 {[%clk 0:01:36.1]} 33... b6
{[%clk 0:03:31.5]} 34. Ka3 {[%clk 0:01:33.9]} 34... Kf7 {[%clk 0:03:32.9]} 35.
Ba6 {[%clk 0:01:29.1]} 35... Kg6 {[%clk 0:03:34.1]} 36. Bb7 {[%clk 0:01:29.9]}
36... c5 {[%clk 0:03:35]} 37. bxa5 {[%clk 0:01:25.4]} 37... bxa5 {[%clk
0:03:36.9]} 38. Bd5 {[%clk 0:01:26.4]} 38... Bd7 {[%clk 0:03:36.6]} 39. Kb3
{[%clk 0:01:26.3]} 39... Kxh6 {[%clk 0:03:36.7]} 40. Kc4 {[%clk 0:01:24.1]}
40... Bxa4 {[%clk 0:03:38.1]} 41. Kxc5 {[%clk 0:01:25.5]} 41... Bd1 {[%clk
0:03:37.9]} 42. Kd6 {[%clk 0:01:07.7]} 42... Bxf3 {[%clk 0:03:37.5]} 43. c4
{[%clk 0:01:09]} 43... Bxg4 {[%clk 0:03:31.5]} 44. c5 {[%clk 0:01:10.2]} 44...
a4 {[%clk 0:03:30]} 45. Be6 {[%clk 0:01:10.1]} 45... Bxe6 {[%clk 0:03:28.8]} 46.
Kxe6 {[%clk 0:01:11.1]} 46... a3 {[%clk 0:03:30.7]} 47. c6 {[%clk 0:01:12.6]}
47... a2 {[%clk 0:03:32.6]} 48. c7 {[%clk 0:01:14.1]} 48... a1=Q {[%clk
0:03:34.5]} 49. c8=Q {[%clk 0:01:15.4]} 49... Qa7 {[%clk 0:03:25.5]} 50. Kxf6
{[%clk 0:01:11.8]} 50... Qg7+ {[%clk 0:03:26.7]} 51. Kf5 {[%clk 0:01:11.4]}
51... Qg6+ {[%clk 0:03:23]} 52. Kxe5 {[%clk 0:01:11.3]} 52... g4 {[%clk
0:03:21.1]} 53. Kf4 {[%clk 0:01:04]} 53... Kh5 {[%clk 0:03:17.3]} 54. Qf5+
{[%clk 0:00:55.8]} 54... Kh4 {[%clk 0:03:08.5]} 55. Qxg6 {[%clk 0:00:39.3]}
55... hxg6 {[%clk 0:03:10.4]} 56. e5 {[%clk 0:00:40.7]} 56... g3 {[%clk
0:03:12]} 57. Kf3 {[%clk 0:00:41.4]} 57... Kh3 {[%clk 0:03:13.3]} 58. e6 {[%clk
0:00:42.8]} 58... g2 {[%clk 0:03:14.8]} 59. e7 {[%clk 0:00:43.3]} 59... g1=Q
{[%clk 0:03:16.4]} 0-1

[Event "*** Titled Tuesday Blitz"]
[Site "Chess.com"]
[Date "2019.05.07"]
[Round "7"]
[White "MathiasWomacka"]
[Black "bluejay1897"]
[Result "0-1"]
[WhiteElo "2224"]
[BlackElo "2274"]
[TimeControl "180+2"]
[EndTime "14:39:14 PDT"]
[Termination "bluejay1897 won by resignation"]

1. e4 {[%clk 0:02:38.1]} 1... c5 {[%clk 0:03:00.4]} 2. Nf3 {[%clk 0:02:38.2]}
2... e6 {[%clk 0:03:01.6]} 3. d4 {[%clk 0:02:39.4]} 3... cxd4 {[%clk 0:03:03.2]}
4. Nxd4 {[%clk 0:02:40.9]} 4... Nc6 {[%clk 0:03:04.7]} 5. Nc3 {[%clk 0:02:40.8]}
5... a6 {[%clk 0:03:05.7]} 6. Be3 {[%clk 0:02:40.4]} 6... Nf6 {[%clk 0:03:05.4]}
7. Bd3 {[%clk 0:02:23.1]} 7... Qc7 {[%clk 0:03:01.4]} 8. O-O {[%clk 0:02:22.5]}
8... b5 {[%clk 0:02:58.9]} 9. Nxc6 {[%clk 0:02:21.4]} 9... dxc6 {[%clk
0:03:00.1]} 10. f4 {[%clk 0:02:20.8]} 10... Bb7 {[%clk 0:02:58.3]} 11. e5 {[%clk
0:02:21.8]} 11... Nd5 {[%clk 0:02:59.3]} 12. Nxd5 {[%clk 0:02:22.8]} 12... cxd5
{[%clk 0:03:00.3]} 13. Bd4 {[%clk 0:02:18.2]} 13... Bc5 {[%clk 0:03:00.3]} 14.
c3 {[%clk 0:02:19.3]} 14... Qb6 {[%clk 0:03:00.7]} 15. Bc2 {[%clk 0:02:13.6]}
15... Rc8 {[%clk 0:03:01.2]} 16. f5 {[%clk 0:02:02]} 16... g6 {[%clk 0:03:01.9]}
17. fxe6 {[%clk 0:01:58.6]} 17... Qxe6 {[%clk 0:02:52.8]} 18. Rf6 {[%clk
0:01:56.9]} 18... Qe7 {[%clk 0:02:53.8]} 19. Kh1 {[%clk 0:01:23.5]} 19... O-O
{[%clk 0:02:51.8]} 20. Qd2 {[%clk 0:01:22.4]} 20... Rc6 {[%clk 0:02:43.5]} 21.
Raf1 {[%clk 0:01:04.8]} 21... Re6 {[%clk 0:02:41.2]} 22. h3 {[%clk 0:00:54.2]}
22... Bc6 {[%clk 0:02:19.3]} 23. Qf4 {[%clk 0:00:34.7]} 23... Bxd4 {[%clk
0:02:16.3]} 24. cxd4 {[%clk 0:00:35.5]} 24... a5 {[%clk 0:02:02.7]} 25. Bd3
{[%clk 0:00:30.2]} 25... Kg7 {[%clk 0:01:50.5]} 26. h4 {[%clk 0:00:30.2]} 26...
Be8 {[%clk 0:01:44.1]} 27. h5 {[%clk 0:00:30.3]} 27... a4 {[%clk 0:01:38.7]} 28.
a3 {[%clk 0:00:30]} 28... Kg8 {[%clk 0:01:34.1]} 29. hxg6 {[%clk 0:00:28.4]}
29... hxg6 {[%clk 0:01:34.9]} 30. Bxg6 {[%clk 0:00:29.1]} 30... Kg7 {[%clk
0:01:35]} 31. Qg5 {[%clk 0:00:21.8]} 31... fxg6 {[%clk 0:01:30.9]} 32. Qxg6+
{[%clk 0:00:19.4]} 32... Bxg6 {[%clk 0:01:31.7]} 33. Rxf8 {[%clk 0:00:14.7]}
33... Qxf8 {[%clk 0:01:32.3]} 34. Rxf8 {[%clk 0:00:15.3]} 34... Kxf8 {[%clk
0:01:33.6]} 0-1

[Event "*** Titled Tuesday Blitz"]
[Site "Chess.com"]
[Date "2019.05.07"]
[Round "7"]
[White "valeriocarnicelli"]
[Black "StephenDedalus83"]
[Result "0-1"]
[WhiteElo "2527"]
[BlackElo "2806"]
[TimeControl "180+2"]
[EndTime "14:39:17 PDT"]
[Termination "StephenDedalus83 won by resignation"]

1. e4 {[%clk 0:03:01.9]} 1... c5 {[%clk 0:03:00]} 2. Nf3 {[%clk 0:02:45.5]} 2...
Nc6 {[%clk 0:03:00.3]} 3. d4 {[%clk 0:02:46.7]} 3... cxd4 {[%clk 0:03:02.1]} 4.
Nxd4 {[%clk 0:02:48.6]} 4... Qc7 {[%clk 0:03:03.1]} 5. Nc3 {[%clk 0:02:49.1]}
5... e6 {[%clk 0:03:04.3]} 6. Nxc6 {[%clk 0:02:43]} 6... bxc6 {[%clk 0:03:04.1]}
7. g3 {[%clk 0:02:42.8]} 7... Nf6 {[%clk 0:03:03.8]} 8. Bg2 {[%clk 0:02:43.8]}
8... d5 {[%clk 0:03:00.2]} 9. O-O {[%clk 0:02:44.4]} 9... Be7 {[%clk 0:02:58.7]}
10. Re1 {[%clk 0:02:34.4]} 10... O-O {[%clk 0:02:55.5]} 11. b3 {[%clk
0:02:34.6]} 11... Bb4 {[%clk 0:02:46.8]} 12. Bb2 {[%clk 0:02:08.8]} 12... Qa5
{[%clk 0:02:46.4]} 13. Re3 {[%clk 0:02:05]} 13... Rd8 {[%clk 0:02:46.6]} 14. a3
{[%clk 0:01:54.6]} 14... Be7 {[%clk 0:02:41.6]} 15. e5 {[%clk 0:01:46.3]} 15...
Nd7 {[%clk 0:02:41.5]} 16. Ne2 {[%clk 0:01:46.6]} 16... Rb8 {[%clk 0:02:35.8]}
17. Nf4 {[%clk 0:01:42.8]} 17... c5 {[%clk 0:02:27.7]} 18. Qh5 {[%clk
0:01:38.3]} 18... Bb7 {[%clk 0:02:17]} 19. Ree1 {[%clk 0:01:26.8]} 19... Bf8
{[%clk 0:02:11.8]} 20. Bh3 {[%clk 0:01:24.9]} 20... Qb6 {[%clk 0:02:10.8]} 21.
Rad1 {[%clk 0:01:15.8]} 21... a5 {[%clk 0:02:05.2]} 22. Bg2 {[%clk 0:01:13.7]}
22... a4 {[%clk 0:02:04.1]} 23. Nh3 {[%clk 0:00:55.2]} 23... h6 {[%clk
0:02:04.2]} 24. Bc1 {[%clk 0:00:24.3]} 24... axb3 {[%clk 0:02:01.6]} 25. cxb3
{[%clk 0:00:26.2]} 25... Qxb3 {[%clk 0:02:01]} 26. Bf4 {[%clk 0:00:27.3]} 26...
Qxa3 {[%clk 0:01:52]} 27. Ra1 {[%clk 0:00:28.3]} 27... Qb4 {[%clk 0:01:49.8]}
28. Reb1 {[%clk 0:00:29]} 28... Qc3 {[%clk 0:01:50.3]} 29. Rc1 {[%clk
0:00:28.2]} 29... Qd3 {[%clk 0:01:50.9]} 30. Bf1 {[%clk 0:00:26.1]} 30... Qf5
{[%clk 0:01:50]} 31. Qd1 {[%clk 0:00:24.8]} 31... Nxe5 {[%clk 0:01:45.9]} 32.
Rcb1 {[%clk 0:00:22.3]} 32... d4 {[%clk 0:01:43.7]} 33. Bxe5 {[%clk 0:00:12.3]}
33... Qxe5 {[%clk 0:01:43.8]} 34. Nf4 {[%clk 0:00:13.2]} 34... Bc6 {[%clk
0:01:37.8]} 0-1

[Event "*** Titled Tuesday Blitz"]
[Site "Chess.com"]
[Date "2019.05.07"]
[Round "7"]
[White "pedro_gines"]
[Black "Witik"]
[Result "0-1"]
[WhiteElo "2358"]
[BlackElo "2582"]
[TimeControl "180+2"]
[EndTime "14:39:21 PDT"]
[Termination "Witik won by resignation"]

1. d4 {[%clk 0:03:01.9]} 1... d5 {[%clk 0:02:58.4]} 2. c4 {[%clk 0:03:01.6]}
2... e6 {[%clk 0:02:59.3]} 3. Nf3 {[%clk 0:03:02.1]} 3... c6 {[%clk 0:03:00.1]}
4. e3 {[%clk 0:03:00.7]} 4... Bd6 {[%clk 0:03:00.8]} 5. Bd3 {[%clk 0:03:00.9]}
5... f5 {[%clk 0:03:01.3]} 6. O-O {[%clk 0:03:01.3]} 6... Nf6 {[%clk 0:03:02.4]}
7. b3 {[%clk 0:03:02.2]} 7... Qe7 {[%clk 0:03:03.1]} 8. Bb2 {[%clk 0:03:03.5]}
8... O-O {[%clk 0:03:03.6]} 9. Qc1 {[%clk 0:03:04.7]} 9... b6 {[%clk 0:02:59.1]}
10. Ba3 {[%clk 0:03:05.9]} 10... c5 {[%clk 0:02:39.7]} 11. cxd5 {[%clk
0:03:03.3]} 11... exd5 {[%clk 0:02:39.1]} 12. dxc5 {[%clk 0:03:04.2]} 12... bxc5
{[%clk 0:02:40.3]} 13. Nc3 {[%clk 0:03:05.1]} 13... a6 {[%clk 0:02:36.7]} 14.
Na4 {[%clk 0:03:05.3]} 14... Nbd7 {[%clk 0:02:19.5]} 15. Bxf5 {[%clk 0:03:01.7]}
15... Ne4 {[%clk 0:02:20.6]} 16. Bxd7 {[%clk 0:02:45.7]} 16... Bxd7 {[%clk
0:02:18.6]} 17. Nb6 {[%clk 0:02:44.6]} 17... Rxf3 {[%clk 0:02:19.1]} 18. Nxa8
{[%clk 0:01:07.8]} 18... Bxh2+ {[%clk 0:02:19.3]} 19. Kxh2 {[%clk 0:01:07.2]}
19... Qh4+ {[%clk 0:02:20.2]} 20. Kg1 {[%clk 0:01:07.4]} 20... Nxf2 {[%clk
0:02:21]} 21. Rxf2 {[%clk 0:00:50.9]} 21... Qxf2+ {[%clk 0:02:20.4]} 22. Kh1
{[%clk 0:00:21.5]} 22... Rh3+ {[%clk 0:02:09.6]} 23. gxh3 {[%clk 0:00:20.9]}
23... Bf5 {[%clk 0:02:11.2]} 24. Qb1 {[%clk 0:00:05.4]} 24... Bxb1 {[%clk
0:02:06.9]} 25. Rxb1 {[%clk 0:00:07.3]} 25... Qxa2 {[%clk 0:02:07.3]} 26. Rd1
{[%clk 0:00:08.8]} 26... Qxb3 {[%clk 0:02:03.6]} 27. Ra1 {[%clk 0:00:09.9]}
27... Qc3 {[%clk 0:02:00.5]} 28. Ra2 {[%clk 0:00:07.9]} 28... Qb3 {[%clk
0:01:59]} 29. Ra1 {[%clk 0:00:08.8]} 29... Qxe3 {[%clk 0:02:00.2]} 30. Nb6
{[%clk 0:00:06.7]} 30... Qxh3+ {[%clk 0:02:00.2]} 31. Kg1 {[%clk 0:00:07.5]}
31... Qg3+ {[%clk 0:02:00]} 32. Kh1 {[%clk 0:00:08.5]} 32... Qh4+ {[%clk
0:02:00.4]} 33. Kg2 {[%clk 0:00:07.2]} 33... Qg5+ {[%clk 0:02:01.5]} 34. Kh1
{[%clk 0:00:06.2]} 34... Qh6+ {[%clk 0:02:02.6]} 35. Kg2 {[%clk 0:00:05.9]}
35... Qxb6 {[%clk 0:02:04.5]} 36. Re1 {[%clk 0:00:05.3]} 36... h6 {[%clk
0:02:00.8]} 37. Re7 {[%clk 0:00:03.3]} 37... Qg6+ {[%clk 0:02:00.7]} 38. Kh1
{[%clk 0:00:03.1]} 38... Qh5+ {[%clk 0:02:01.6]} 39. Kg2 {[%clk 0:00:04.3]}
39... Qg5+ {[%clk 0:02:03]} 40. Kh1 {[%clk 0:00:05.6]} 40... Qxe7 {[%clk
0:02:04.9]} 41. Bc1 {[%clk 0:00:05.2]} 41... Qe1+ {[%clk 0:02:04.6]} 42. Kh2
{[%clk 0:00:05.7]} 42... Qxc1 {[%clk 0:02:06.2]} 0-1

[Event "*** Titled Tuesday Blitz"]
[Site "Chess.com"]
[Date "2019.05.07"]
[Round "7"]
[White "rasmussvane"]
[Black "Sebastian"]
[Result "0-1"]
[WhiteElo "2802"]
[BlackElo "2923"]
[TimeControl "180+2"]
[EndTime "14:39:29 PDT"]
[Termination "Sebastian won by checkmate"]

1. Nf3 {[%clk 0:03:01.9]} 1... c5 {[%clk 0:02:59.4]} 2. c4 {[%clk 0:03:02.5]}
2... Nc6 {[%clk 0:03:00]} 3. Nc3 {[%clk 0:03:03.4]} 3... g6 {[%clk 0:02:58.6]}
4. e3 {[%clk 0:03:03.7]} 4... Bg7 {[%clk 0:02:57.2]} 5. d4 {[%clk 0:03:04.8]}
5... d6 {[%clk 0:02:57.4]} 6. Be2 {[%clk 0:03:06.3]} 6... Bg4 {[%clk 0:02:55.3]}
7. h3 {[%clk 0:03:07.2]} 7... Bxf3 {[%clk 0:02:55.8]} 8. Bxf3 {[%clk 0:03:09.1]}
8... cxd4 {[%clk 0:02:56.6]} 9. exd4 {[%clk 0:03:11]} 9... Nf6 {[%clk 0:02:55]}
10. O-O {[%clk 0:03:10.8]} 10... O-O {[%clk 0:02:55.8]} 11. Be3 {[%clk 0:03:12]}
11... Rc8 {[%clk 0:02:55.6]} 12. Rc1 {[%clk 0:03:09.1]} 12... a6 {[%clk
0:02:55.1]} 13. Re1 {[%clk 0:03:08.2]} 13... Re8 {[%clk 0:02:52.1]} 14. b3
{[%clk 0:03:05.5]} 14... h5 {[%clk 0:02:48.9]} 15. Nd5 {[%clk 0:02:37.4]} 15...
e6 {[%clk 0:02:39.8]} 16. Nxf6+ {[%clk 0:02:33.8]} 16... Qxf6 {[%clk 0:02:41.7]}
17. Bxc6 {[%clk 0:02:27.3]} 17... bxc6 {[%clk 0:02:40.6]} 18. Qd2 {[%clk
0:02:28.6]} 18... Qf5 {[%clk 0:02:38.5]} 19. Red1 {[%clk 0:02:26.1]} 19... a5
{[%clk 0:02:29.7]} 20. c5 {[%clk 0:02:25.4]} 20... d5 {[%clk 0:02:23]} 21. Qxa5
{[%clk 0:02:26.4]} 21... e5 {[%clk 0:02:23.4]} 22. dxe5 {[%clk 0:02:24.2]} 22...
Bxe5 {[%clk 0:02:21.9]} 23. Qd2 {[%clk 0:01:57.7]} 23... Bc7 {[%clk 0:02:21.9]}
24. Qd3 {[%clk 0:01:29.5]} 24... Qe5 {[%clk 0:02:18.3]} 25. g3 {[%clk
0:01:29.8]} 25... Qe6 {[%clk 0:02:17.1]} 26. h4 {[%clk 0:01:24.7]} 26... Qg4
{[%clk 0:02:16.5]} 27. Bg5 {[%clk 0:01:16.3]} 27... Re2 {[%clk 0:02:00.1]} 28.
a4 {[%clk 0:00:59.3]} 28... Rce8 {[%clk 0:02:00.6]} 29. b4 {[%clk 0:01:00.7]}
29... Qxb4 {[%clk 0:01:50.3]} 30. Rb1 {[%clk 0:00:50.9]} 30... Qxa4 {[%clk
0:01:48.6]} 31. Rb7 {[%clk 0:00:51]} 31... Bxg3 {[%clk 0:01:09.5]} 32. fxg3
{[%clk 0:00:50.6]} 32... Qg4 {[%clk 0:01:11.1]} 33. Rdb1 {[%clk 0:00:28.8]}
33... Qh3 {[%clk 0:01:05.2]} 34. Qf3 {[%clk 0:00:24.8]} 34... Re1+ {[%clk
0:01:05.9]} 35. Rxe1 {[%clk 0:00:25.3]} 35... Rxe1+ {[%clk 0:01:05.9]} 36. Kf2
{[%clk 0:00:27]} 36... Qf1# {[%clk 0:01:06.7]} 0-1

[Event "*** Titled Tuesday Blitz"]
[Site "Chess.com"]
[Date "2019.05.07"]
[Round "7"]
[White "kacprekt"]
[Black "Vice64"]
[Result "0-1"]
[WhiteElo "2310"]
[BlackElo "2539"]
[TimeControl "180+2"]
[EndTime "14:39:34 PDT"]
[Termination "Vice64 won by resignation"]

1. d4 {[%clk 0:02:30.1]} 1... Nf6 {[%clk 0:02:56.7]} 2. Nf3 {[%clk 0:02:30.9]}
2... e6 {[%clk 0:02:56.8]} 3. g3 {[%clk 0:02:32.8]} 3... b6 {[%clk 0:02:55.8]}
4. Bg2 {[%clk 0:02:34]} 4... Bb7 {[%clk 0:02:57.1]} 5. O-O {[%clk 0:02:35.4]}
5... Be7 {[%clk 0:02:58.3]} 6. c4 {[%clk 0:02:36.4]} 6... O-O {[%clk 0:02:58.7]}
7. Nc3 {[%clk 0:02:37.9]} 7... Ne4 {[%clk 0:02:59.1]} 8. Re1 {[%clk 0:02:34.7]}
8... Qc8 {[%clk 0:02:49.1]} 9. Qc2 {[%clk 0:02:30.7]} 9... Nxc3 {[%clk
0:02:48.3]} 10. Qxc3 {[%clk 0:02:32.6]} 10... Be4 {[%clk 0:02:49.1]} 11. Nd2
{[%clk 0:02:13.9]} 11... Bxg2 {[%clk 0:02:48.1]} 12. Kxg2 {[%clk 0:02:15.8]}
12... c5 {[%clk 0:02:44.2]} 13. d5 {[%clk 0:02:15.1]} 13... exd5 {[%clk
0:02:43.5]} 14. cxd5 {[%clk 0:02:17]} 14... Bf6 {[%clk 0:02:44.6]} 15. Qf3
{[%clk 0:02:12.8]} 15... d6 {[%clk 0:02:43.2]} 16. Ne4 {[%clk 0:02:13.1]} 16...
Be7 {[%clk 0:02:36.9]} 17. h4 {[%clk 0:02:12.9]} 17... Nd7 {[%clk 0:02:35.4]}
18. Bg5 {[%clk 0:02:08.9]} 18... Ne5 {[%clk 0:02:21.6]} 19. Qe3 {[%clk
0:01:46.8]} 19... Qb7 {[%clk 0:02:13.6]} 20. Bxe7 {[%clk 0:01:28.7]} 20... Qxe7
{[%clk 0:02:15.5]} 21. Ng5 {[%clk 0:01:24.5]} 21... Rae8 {[%clk 0:02:12.8]} 22.
Qc3 {[%clk 0:01:11.1]} 22... h6 {[%clk 0:02:10.2]} 23. Nh3 {[%clk 0:01:08.8]}
23... Qb7 {[%clk 0:02:08.3]} 24. e4 {[%clk 0:01:09.2]} 24... f5 {[%clk
0:02:06.9]} 25. f3 {[%clk 0:00:34.6]} 25... fxe4 {[%clk 0:01:58.4]} 26. fxe4
{[%clk 0:00:36.5]} 26... c4 {[%clk 0:01:59.7]} 27. Rf1 {[%clk 0:00:33.6]} 27...
b5 {[%clk 0:01:57.9]} 28. Rxf8+ {[%clk 0:00:32.5]} 28... Rxf8 {[%clk 0:01:58.3]}
29. Nf4 {[%clk 0:00:33.7]} 29... Qb6 {[%clk 0:01:57.2]} 30. Rf1 {[%clk
0:00:33.1]} 30... b4 {[%clk 0:01:56.6]} 31. Qd2 {[%clk 0:00:33.7]} 31... Ng4
{[%clk 0:01:49.4]} 32. Kh3 {[%clk 0:00:31.7]} 32... Ne5 {[%clk 0:01:48.9]} 33.
Rf2 {[%clk 0:00:28.8]} 33... a5 {[%clk 0:01:40.8]} 34. g4 {[%clk 0:00:26.6]}
34... c3 {[%clk 0:01:41.2]} 35. bxc3 {[%clk 0:00:26.8]} 35... bxc3 {[%clk
0:01:42.6]} 36. Qe2 {[%clk 0:00:26.8]} 36... Qd4 {[%clk 0:01:38]} 37. Kg3 {[%clk
0:00:27]} 37... g5 {[%clk 0:01:30.6]} 38. hxg5 {[%clk 0:00:28.1]} 38... hxg5
{[%clk 0:01:31.6]} 39. Ne6 {[%clk 0:00:22.4]} 39... Qxf2+ {[%clk 0:01:31.7]} 40.
Qxf2 {[%clk 0:00:22.4]} 40... Rxf2 {[%clk 0:01:32.2]} 41. Kxf2 {[%clk
0:00:20.8]} 41... c2 {[%clk 0:01:33.3]} 0-1